fUST/lending_fUST_20250617
["ID","MTS","AMOUNT","RATE_DAILY","PERIOD"]
[366217751,1750127443172,-460.0,0.00024657,6]
[366217753,1750127443181,-460.0,0.00024657,6]
[366217755,1750127443191,-460.0,0.00024657,6]
[366217756,1750127443202,-460.0,0.00024657,6]
[366217759,1750127443211,-460.0,0.00024657,6]
[366217761,1750127443221,-460.0,0.00024657,6]
[366217763,1750127443231,-460.0,0.00024657,6]
[366217765,1750127443241,-460.0,0.00024657,6]
[366217767,1750127443251,-460.0,0.00024657,6]
[366217769,1750127443262,-460.0,0.00024657,6]
[366217771,1750127443273,-460.0,0.00024657,6]
[366217773,1750127443283,-460.0,0.00024657,6]
[366217775,1750127443292,-526.48777752,0.00024657,6]
[366217777,1750127443303,-460.0,0.00024657,6]
[366217779,1750127443314,-460.0,0.00024657,6]
[366217781,1750127443324,-460.0,0.00024657,6]
[366217783,1750127443335,-460.0,0.00024657,6]
[366217785,1750127443344,-500.0,0.00024658,2]
[366217787,1750127443355,-806.36077028,0.00024668,2]
[366217789,1750127443366,-704.94,0.00024671,6]
[366217791,1750127443377,-882.81,0.00024671,6]
[366217793,1750127443387,-821.28,0.00024671,6]
[366217795,1750127443397,-460.0,0.00024671,6]
[366217797,1750127443407,-922.09,0.00024672,6]
[366217799,1750127443417,-704.94,0.00024672,6]
[366217801,1750127443428,-704.94,0.00024672,6]
[366217803,1750127443437,-704.94,0.00024672,6]
[366217805,1750127443448,-704.94,0.00024672,6]
[366217808,1750127443458,-705.11131732,0.00024672,6]
[366217810,1750127443468,-882.81,0.00024672,6]
[366217812,1750127443480,-882.81,0.00024672,6]
[366217814,1750127443491,-464.42663163,0.00024672,6]
[366217823,1750127443579,-418.38336837,0.00024672,6]
[366217825,1750127443591,-263.86482072,0.00024672,6]
[366217827,1750127443605,-618.94517928,0.00024672,6]
[366217829,1750127443616,-242.9278326,0.00024672,6]
[366217843,1750127443753,-500.0,0.00021999,2]
[366217845,1750127443763,-154.74790003,0.00021999,2]
[366218622,1750127544676,174.338606,0.00013699,2]
[366218632,1750128308563,1426.9916122,0.000245,120]
[366218687,1750128632572,-313.73916419,0.00020702,2]
[366218693,1750128632626,-242.29296441,0.00020702,2]
[366218695,1750128632635,-500.0,0.00021122,2]
[366218698,1750128632646,-1210.94,0.00021346,2]
[366218700,1750128632656,-287.682232,0.00022307,2]
[366218703,1750128632666,-150.0,0.000224,2]
[366218706,1750128632676,-213.39869953,0.00022405,2]
[366218709,1750128632686,-845.62440851,0.00022405,2]
[366218713,1750128632696,-160.0,0.00022405,2]
[366218715,1750128632705,-168.0,0.00022614,2]
[366218717,1750128632715,-168.0,0.00022897,2]
[366218720,1750128632726,-300.0,0.00022999,2]
[366218722,1750128632736,-500.88,0.00023,3]
[366218724,1750128632745,-500.0,0.00023,3]
[366218726,1750128632755,-500.0,0.00023,3]
[366218729,1750128632765,-500.0,0.00023,3]
[366218732,1750128632775,-500.0,0.00023,2]
[366218735,1750128632785,-500.0,0.00023,3]
[366218738,1750128632794,-500.0,0.00023,3]
[366218741,1750128632804,-421.53354601,0.00023,3]
[366218849,1750128638272,-2715.27653771,0.00022296,2]
[366218852,1750128638284,-1293.46874142,0.00022296,2]
[366218854,1750128638295,-444.99950906,0.00022296,2]
[366218858,1750128638324,-11280.62254276,0.00022296,2]
[366218860,1750128638336,-4520.35643083,0.00022296,2]
[366218863,1750128638382,-991.04804299,0.00022296,2]
[366218864,1750128638440,-28.00177743,0.00022296,2]
[366218865,1750128638457,-78.46645399,0.00023,3]
[366218866,1750128638466,-168.0,0.00023157,2]
[366218867,1750128638476,-292.07176858,0.00023287,2]
[366219167,1750128643419,-2129.79823142,0.00023287,2]
[366219169,1750128643429,-500.0,0.00023314,2]
[366219171,1750128643443,-207.4,0.00023612,2]
[366219173,1750128643453,-168.0,0.00023814,2]
[366219175,1750128643462,-165.02813857,0.0002389,2]
[366219177,1750128643471,-231.04872006,0.00023973,2]
[366219180,1750128643482,-500.0,0.00023973,2]
[366219183,1750128643492,-500.0,0.00023973,2]
[366219186,1750128643502,-500.0,0.00023973,2]
[366219189,1750128643513,-500.0,0.00023984,2]
[366219192,1750128643522,-176.57001389,0.00023984,2]
[366219194,1750128643532,-152.5444897,0.00023985,2]
[366219212,1750128643670,-151.0,0.00023985,2]
[366219214,1750128643683,-313.9584703,0.00023985,2]
[366219216,1750128643696,-4453.39967397,0.00023985,2]
[366219218,1750128643708,-232.64185573,0.00023985,2]
[366219221,1750128643719,-500.0,0.00023985,2]
[366219223,1750128643730,-500.0,0.00023985,2]
[366219225,1750128643740,-500.0,0.00023985,2]
[366219227,1750128643751,-500.0,0.00023985,2]
[366219229,1750128643760,-500.0,0.00023985,2]
[366219231,1750128643771,-500.0,0.00023985,2]
[366219233,1750128643780,-500.0,0.00023985,2]
[366219235,1750128643791,-500.0,0.00023985,2]
[366219237,1750128643801,-500.0,0.00023985,2]
[366219239,1750128643810,-500.0,0.00023985,2]
[366219241,1750128643820,-500.0,0.00023985,2]
[366219243,1750128643830,-500.0,0.00023985,2]
[366219245,1750128643840,-500.0,0.00023985,2]
[366219247,1750128643850,-500.0,0.00023985,2]
[366219249,1750128643860,-500.0,0.00023985,2]
[366219250,1750128643873,-500.0,0.00023985,2]
[366219253,1750128643884,-500.0,0.00023985,2]
[366219254,1750128643894,-500.0,0.00023985,2]
[366219256,1750128643904,-500.0,0.00023985,2]
[366219258,1750128643914,-1079.92,0.0002399,3]
[366219260,1750128643924,-539.96,0.0002399,3]
[366219263,1750128643936,-269.98,0.0002399,3]
[366219265,1750128643947,-809.98,0.0002399,3]
[366219267,1750128643956,-500.0,0.00023999,2]
[366219269,1750128643966,-275.26818247,0.00023999,2]
[366219270,1750128643976,-500.0,0.00023999,2]
[366219272,1750128643985,-500.0,0.00023999,2]
[366219274,1750128643995,-500.0,0.00023999,2]
[366219276,1750128644006,-500.0,0.00023999,2]
[366219278,1750128644015,-500.0,0.00023999,2]
[366219280,1750128644025,-500.0,0.00023999,2]
[366219282,1750128644034,-500.0,0.00023999,2]
[366219284,1750128644044,-500.0,0.00023999,2]
[366219286,1750128644054,-500.0,0.00023999,2]
[366219288,1750128644063,-491.36983245,0.00023999,2]
[366219290,1750128644073,-500.0,0.00023999,2]
[366219292,1750128644082,-500.0,0.00023999,2]
[366219294,1750128644092,-33.20865712,0.00023999,2]
[366219296,1750128644104,-466.79134288,0.00023999,2]
[366219298,1750128644115,-544.67636872,0.00023999,2]
[366219300,1750128644124,-544.67636872,0.00023999,2]
[366219302,1750128644134,-112.82611642,0.00023999,2]
[366219305,1750128644146,-431.8502523,0.00023999,2]
[366219307,1750128644156,-177.67740397,0.00023999,2]
[366220118,1750128731375,174.338606,0.00013699,2]
[366220121,1750129432496,1236321.99319508,0.00024971,60]
[366220132,1750129763543,151.0,0.00024658,120]
[366220133,1750129780078,151.0,0.00024658,120]
[366220134,1750129792742,151.0,0.00024658,120]
[366220136,1750129808362,151.0,0.00024658,120]
[366220139,1750129817221,900.0,0.00024658,120]
[366220140,1750129822902,151.0,0.00024658,120]
[366220179,1750129832623,-1218.22,0.00020996,2]
[366220181,1750129832633,-500.0,0.00021122,2]
[366220183,1750129832643,-652.15422081,0.000218,15]
[366220519,1750129842775,213.0,0.00024658,120]
[366220557,1750129843684,-274.20745242,0.000218,15]
[366220697,1750129846720,-73.63832677,0.000218,15]
[366220699,1750129846731,-387.84145659,0.00021881,2]
[366220750,1750129991532,174.338606,0.00013699,2]
[366220752,1750129994608,525.52134609,0.00024658,120]
[366220811,1750130983665,536.0,0.0002465,120]
[366220892,1750131032879,-1229.12,0.00021112,2]
[366220894,1750131032892,-500.0,0.00021122,2]
[366220896,1750131032907,-256.95247991,0.0002153,2]
[366221328,1750131040950,-153.1367388,0.0002153,2]
[366221329,1750131040960,-273.9951454,0.00021983,2]
[366221330,1750131040971,-2369.6345026,0.00021985,2]
[366221331,1750131040981,-300.0,0.00021997,2]
[366221332,1750131040991,-192.68772773,0.00021997,2]
[366221333,1750131041001,-512.18600091,0.00021997,2]
[366221334,1750131041229,-512.18600091,0.00021997,2]
[366221335,1750131041242,-512.18600091,0.00021997,2]
[366221336,1750131041252,-46.36190455,0.00021997,2]
[366222613,1750131174599,150.0,0.00019897,2]
[366222614,1750131184676,8729.13342549,0.0002,2]
[366222615,1750131184697,7993.66042032,0.0002,2]
[366222628,1750131648274,174.338606,0.00013699,2]
[366222629,1750131879546,180.28843071,0.00019767,2]
[366222630,1750131893714,418.82864969,0.00015,7]
[366222642,1750132013520,1232.88389328,0.0002,2]
[366222643,1750132013546,3767.11610672,0.0002,2]
[366222694,1750132232049,-5000.0,0.00020229,2]
[366222696,1750132232059,-124.30261044,0.0002082,2]
[366222697,1750132232076,-1129.41738956,0.0002082,2]
[366222698,1750132232086,-185.6632084,0.00021039,2]
[366222699,1750132232096,-500.0,0.00021122,2]
[366222700,1750132232106,-250.64084515,0.00021176,2]
[366222701,1750132232117,-368.28543371,0.00021395,2]
[366222702,1750132232128,-154.65,0.0002199,10]
[366222703,1750132232138,-773.3,0.0002199,10]
[366222704,1750132232148,-300.0,0.0002199,2]
[366222705,1750132232159,-172.24533993,0.0002199,2]
[366222706,1750132232169,-1059.82227631,0.00021991,2]
[366222707,1750132232179,-300.0,0.00021991,2]
[366222708,1750132232188,-151.0,0.00021992,7]
[366222709,1750132232198,-151.0,0.00021992,7]
[366222710,1750132232208,-151.0,0.00021992,7]
[366222711,1750132232218,-14840.36878057,0.00021992,2]
[366222712,1750132232227,-2900.94831197,0.00021992,2]
[366222713,1750132232240,-27032.60755769,0.00021992,2]
[366222714,1750132232249,-192.04,0.00021992,2]
[366222715,1750132232259,-165.179271,0.00021993,7]
[366222716,1750132232268,-165.179271,0.00021993,7]
[366222717,1750132232278,-165.179271,0.00021993,7]
[366222718,1750132232288,-165.179271,0.00021993,7]
[366222719,1750132232298,-165.179271,0.00021993,7]
[366222720,1750132232308,-165.179271,0.00021993,7]
[366222721,1750132232318,-165.179271,0.00021993,7]
[366222722,1750132232328,-165.179271,0.00021993,7]
[366222723,1750132232338,-151.0,0.00021993,7]
[366222724,1750132232347,-151.0,0.00021993,7]
[366222725,1750132232357,-151.0,0.00021993,7]
[366222726,1750132232367,-151.0,0.00021993,7]
[366222727,1750132232376,-151.0,0.00021993,7]
[366222728,1750132232386,-151.0,0.00021993,7]
[366222729,1750132232395,-151.0,0.00021993,7]
[366222730,1750132232405,-199.539448,0.00021993,7]
[366222731,1750132232414,-297.282437,0.00021993,7]
[366222732,1750132232423,-151.0,0.00021994,7]
[366222733,1750132232433,-151.0,0.00021994,7]
[366222734,1750132232442,-151.0,0.00021994,7]
[366222735,1750132232452,-180.511847,0.00021994,7]
[366222736,1750132232461,-180.511847,0.00021994,7]
[366222737,1750132232471,-180.511847,0.00021994,7]
[366222738,1750132232480,-180.511847,0.00021994,7]
[366222739,1750132232490,-180.511847,0.00021994,7]
[366222740,1750132232500,-180.511847,0.00021994,7]
[366222741,1750132232510,-151.0,0.00021994,7]
[366222742,1750132232520,-151.0,0.00021994,7]
[366222743,1750132232530,-151.0,0.00021994,7]
[366222744,1750132232540,-151.0,0.00021994,7]
[366222745,1750132232549,-151.0,0.00021994,7]
[366222746,1750132232559,-151.0,0.00021994,7]
[366222747,1750132232569,-151.0,0.00021994,7]
[366222748,1750132232579,-206.521246,0.00021994,7]
[366222749,1750132232589,-151.0,0.00021994,7]
[366222750,1750132232598,-151.0,0.00021994,7]
[366222751,1750132232607,-151.0,0.00021995,7]
[366222752,1750132232617,-151.0,0.00021995,7]
[366222753,1750132232627,-151.0,0.00021995,7]
[366222754,1750132232637,-151.0,0.00021995,7]
[366222755,1750132232646,-151.0,0.00021995,7]
[366222756,1750132232656,-151.0,0.00021995,7]
[366222757,1750132232666,-253.025525,0.00021995,7]
[366222758,1750132232678,-549.583088,0.00021995,7]
[366222759,1750132232688,-549.583088,0.00021995,7]
[366222760,1750132232700,-549.583088,0.00021995,7]
[366222761,1750132232709,-549.583088,0.00021995,7]
[366222762,1750132232719,-294.367494,0.00021995,7]
[366222763,1750132232729,-151.0,0.00021995,7]
[366222764,1750132232738,-151.0,0.00021995,7]
[366222765,1750132232748,-151.0,0.00021995,7]
[366222766,1750132232758,-151.0,0.00021995,7]
[366222767,1750132232768,-180.511847,0.00021995,7]
[366222768,1750132232777,-180.511847,0.00021995,7]
[366222769,1750132232787,-180.511847,0.00021995,7]
[366222770,1750132232797,-180.511847,0.00021995,7]
[366222771,1750132232807,-151.0,0.00021995,7]
[366222772,1750132232816,-163.455046,0.00021995,7]
[366222773,1750132232826,-151.0,0.00021995,7]
[366222774,1750132232835,-165.179271,0.00021995,7]
[366222775,1750132232845,-165.179271,0.00021995,7]
[366222776,1750132232856,-158.695515,0.00021995,7]
[366222777,1750132232865,-151.0,0.00021995,7]
[366222778,1750132232874,-549.583088,0.00021996,7]
[366222779,1750132232884,-549.583088,0.00021996,7]
[366222780,1750132232894,-549.583088,0.00021996,7]
[366222781,1750132232903,-549.583088,0.00021996,7]
[366222782,1750132232913,-151.0,0.00021996,7]
[366222783,1750132232923,-165.179271,0.00021996,7]
[366222784,1750132232933,-165.179271,0.00021996,7]
[366222785,1750132232943,-151.0,0.00021996,7]
[366222786,1750132232953,-1000.0,0.00021997,2]
[366222787,1750132232962,-1000.0,0.00021997,2]
[366222788,1750132232972,-1000.0,0.00021997,2]
[366222789,1750132232982,-165.179271,0.00021997,7]
[366222790,1750132232992,-165.179271,0.00021997,7]
[366222791,1750132233001,-331.954108,0.00021998,2]
[366222792,1750132233011,-331.954108,0.00021998,2]
[366222793,1750132233020,-331.954108,0.00021998,2]
[366222794,1750132233030,-331.954108,0.00021998,2]
[366222795,1750132233039,-1000.0,0.00021999,2]
[366222796,1750132233049,-500.0,0.00022,15]
[366222797,1750132233059,-5914.24312213,0.00022,7]
[366222798,1750132233068,-331.954108,0.00022,2]
[366222799,1750132233078,-331.954108,0.00022,2]
[366222800,1750132233089,-331.954108,0.00022,2]
[366222801,1750132233099,-331.954108,0.00022,2]
[366222802,1750132233109,-151.0,0.00022,7]
[366222803,1750132233119,-549.583088,0.00022,7]
[366222804,1750132233129,-549.583088,0.00022,7]
[366222805,1750132233140,-151.0,0.00022,7]
[366222806,1750132233150,-180.511847,0.00022,7]
[366222807,1750132233160,-180.511847,0.00022,7]
[366222808,1750132233170,-180.511847,0.00022,7]
[366222809,1750132233179,-180.511847,0.00022,7]
[366222810,1750132233189,-152.23314941,0.00022,15]
[366222811,1750132233199,-213.27861618,0.00022,15]
[366222812,1750132233209,-151.0,0.00022,15]
[366222813,1750132233218,-152.97788714,0.00022,15]
[366222814,1750132233228,-306.0,0.00022,2]
[366222815,1750132233237,-165.179271,0.00022,7]
[366222816,1750132233247,-165.179271,0.00022,7]
[366222817,1750132233257,-151.0,0.00022,7]
[366222818,1750132233266,-151.0,0.00022,7]
[366222819,1750132233276,-174.0,0.00022,2]
[366222820,1750132233286,-151.0,0.00022027,15]
[366222821,1750132233296,-500.0,0.00022036,2]
[366222822,1750132233306,-203.70778362,0.00022055,15]
[366222823,1750132233316,-501.81217881,0.00022086,2]
[366222824,1750132233326,-508.10375771,0.00022086,2]
[366222825,1750132233337,-500.0,0.00022086,2]
[366222826,1750132233347,-180.511847,0.000221,7]
[366222827,1750132233358,-180.511847,0.000221,7]
[366222828,1750132233368,-165.179271,0.000221,7]
[366222829,1750132233378,-165.179271,0.000221,7]
[366222830,1750132233389,-210.98871977,0.00022246,2]
[366222831,1750132233399,-160.0,0.00022479,2]
[366222832,1750132233409,-213.39869953,0.00022479,2]
[366222833,1750132233419,-160.0,0.00022479,2]
[366222834,1750132233430,-160.0,0.00022479,2]
[366222835,1750132233440,-835.82910252,0.00022479,2]
[366222836,1750132233450,-160.0,0.00022479,2]
[366222837,1750132233461,-521.20253454,0.00022484,2]
[366222838,1750132233471,-331.954108,0.00022485,2]
[366222839,1750132233691,-331.954108,0.00022485,2]
[366222840,1750132233703,-151.0,0.00022485,7]
[366222841,1750132233714,-549.583088,0.00022485,7]
[366222842,1750132233725,-549.583088,0.00022485,7]
[366222843,1750132233735,-151.0,0.00022485,7]
[366222844,1750132233745,-180.511847,0.00022485,7]
[366222845,1750132233756,-180.511847,0.00022485,7]
[366222846,1750132233766,-165.179271,0.00022485,7]
[366222847,1750132233776,-165.179269,0.00022485,7]
[366222848,1750132233788,-151.0,0.00022485,7]
[366222849,1750132233798,-180.511847,0.00022519,7]
[366222850,1750132233808,-180.511843,0.00022519,7]
[366222851,1750132233818,-151.0,0.00022548,7]
[366222852,1750132233827,-502.74950445,0.0002255,2]
[366222853,1750132233837,-248.80962452,0.0002255,2]
[366222854,1750132233847,-500.0,0.0002255,2]
[366222855,1750132233856,-506.88879661,0.00022563,2]
[366222856,1750132233866,-1000.0,0.00022584,2]
[366222857,1750132233875,-508.03377348,0.00022634,2]
[366222858,1750132233885,-500.0,0.00022655,2]
[366222859,1750132233895,-300.61628862,0.00022661,2]
[366222860,1750132233905,-2507.44,0.00022713,2]
[366222861,1750132233914,-151.0,0.00022802,7]
[366222862,1750132233926,-549.583088,0.00022802,7]
[366222863,1750132233935,-549.583088,0.00022802,7]
[366222864,1750132233945,-151.0,0.00022802,7]
[366222865,1750132233955,-354.99076759,0.000229,2]
[366222866,1750132233965,-500.0,0.00022999,2]
[366222867,1750132233974,-160.0,0.00022999,2]
[366222868,1750132233984,-1000.0,0.00022999,2]
[366222869,1750132233994,-18895.33033288,0.00023,20]
[366222870,1750132234003,-331.954108,0.00023,2]
[366222871,1750132234013,-331.954108,0.00023,2]
[366222872,1750132234023,-151.0,0.00023,7]
[366222873,1750132234034,-549.583088,0.00023,7]
[366222874,1750132234046,-549.583088,0.00023,7]
[366222875,1750132234056,-151.0,0.00023,7]
[366222876,1750132234066,-331.954108,0.00023096,2]
[366222877,1750132234075,-331.954108,0.00023096,2]
[366222878,1750132234086,-1000.0,0.00023098,2]
[366222879,1750132234096,-1500.0,0.00023132,2]
[366222880,1750132234105,-168.0,0.00023206,2]
[366222881,1750132234115,-354.99076755,0.00023313,2]
[366222882,1750132234125,-500.0,0.00023314,2]
[366222883,1750132234135,-153.0,0.00023315,2]
[366222884,1750132234145,-151.0,0.0002334,7]
[366222885,1750132234155,-549.583088,0.0002334,7]
[366222886,1750132234164,-549.583088,0.0002334,7]
[366222887,1750132234179,-151.0,0.0002334,7]
[366222888,1750132234189,-1277.91,0.0002334,3]
[366222889,1750132234199,-638.95,0.0002334,3]
[366222890,1750132234209,-319.48,0.0002334,3]
[366222891,1750132234219,-159.74,0.0002334,3]
[366222892,1750132234229,-479.24,0.0002334,3]
[366222893,1750132234238,-1000.0,0.00023349,2]
[366222894,1750132234255,-1000.0,0.00023349,2]
[366222895,1750132234265,-1000.0,0.00023349,2]
[366222896,1750132234274,-60462.92837439,0.0002335,2]
[366222897,1750132234284,-331.954108,0.0002335,2]
[366222898,1750132234294,-331.954108,0.0002335,2]
[366222899,1750132234304,-151.0,0.0002335,7]
[366222900,1750132234314,-549.583088,0.0002335,7]
[366222901,1750132234324,-549.583084,0.0002335,7]
[366222902,1750132234334,-193.012875,0.0002335,7]
[366222903,1750132234345,-1000.0,0.00023456,2]
[366222904,1750132234354,-331.954108,0.00023457,2]
[366222905,1750132234364,-331.954108,0.00023457,2]
[366222906,1750132234373,-331.954108,0.00023457,2]
[366222907,1750132234383,-331.954108,0.00023457,2]
[366222908,1750132234392,-932.76737775,0.00023457,2]
[366222909,1750132234401,-5000.0,0.00023457,2]
[366222910,1750132234411,-207.4,0.00023457,2]
[366222911,1750132234420,-3469.48344036,0.00023457,2]
[366222912,1750132234430,-374.585705,0.00023519,3]
[366222913,1750132234439,-521.92546715,0.00023547,3]
[366222914,1750132234448,-502.08296999,0.000236,2]
[366222915,1750132234458,-500.0,0.000236,2]
[366222916,1750132234467,-1500.0,0.00023646,2]
[366222917,1750132234477,-1529.64980126,0.0002368,2]
[366222918,1750132234486,-354.99076755,0.00023725,2]
[366222919,1750132234496,-172.33624099,0.00023753,2]
[366222920,1750132234506,-835.40437171,0.0002378,2]
[366222921,1750132234516,-1000.0,0.00023787,2]
[366222922,1750132234525,-9791.56508772,0.00023788,2]
[366222923,1750132234535,-968.011,0.00023793,2]
[366222924,1750132234544,-2169.849,0.00023793,2]
[366222925,1750132234555,-655.768,0.00023793,2]
[366222926,1750132234565,-406.0,0.00023793,2]
[366222927,1750132234575,-15990.25333182,0.000238,2]
[366222928,1750132234584,-154.4729644,0.00023863,2]
[366222929,1750132234594,-420.0,0.00023896,2]
[366222930,1750132234603,-413.0,0.00023897,2]
[366222931,1750132234613,-1000.0,0.00023899,2]
[366222932,1750132234623,-266.95585233,0.000239,3]
[366222933,1750132234634,-601.60099655,0.00023934,2]
[366222934,1750132234644,-1000.0,0.00023955,2]
[366222935,1750132234654,-25536.1958758,0.00023956,2]
[366222936,1750132234664,-500.0,0.00023973,2]
[366222937,1750132234674,-500.0,0.00023973,2]
[366222938,1750132234687,-503.57358786,0.00023973,2]
[366222939,1750132234698,-500.0,0.00023973,2]
[366222940,1750132234707,-501.95520014,0.00023973,2]
[366222941,1750132234719,-501.21841373,0.00023973,2]
[366222942,1750132234730,-501.09327739,0.00023973,2]
[366222943,1750132234740,-500.0,0.00023973,2]
[366222944,1750132234750,-508.96834509,0.00023973,2]
[366222945,1750132234760,-258.8630461,0.00023973,2]
[366222946,1750132234771,-502.93790101,0.00023973,2]
[366222947,1750132234781,-377.01278035,0.00023973,2]
[366222948,1750132234791,-1000.0,0.00023989,2]
[366222949,1750132234801,-200.0,0.00023999,2]
[366222950,1750132234811,-663.45178246,0.00023999,2]
[366222951,1750132234820,-770.96,0.00023999,2]
[366222952,1750132234830,-100000.0,0.00024,30]
[366222953,1750132234840,-2747.75834987,0.00024,60]
[366222954,1750132235175,5000.0,0.0002,2]
[366222973,1750132237928,-548.04937907,0.00021991,2]
[366222974,1750132237938,-548.04937907,0.00021991,2]
[366222975,1750132237948,-548.04937907,0.00021991,2]
[366222976,1750132237958,-548.04937907,0.00021991,2]
[366222977,1750132237968,-548.04937907,0.00021991,2]
[366222978,1750132237978,-548.04937907,0.00021991,2]
[366222979,1750132237988,-548.04937907,0.00021991,2]
[366222980,1750132237997,-548.04937907,0.00021991,2]
[366222981,1750132238007,-548.04937907,0.00021991,2]
[366222982,1750132238017,-548.04937907,0.00021991,2]
[366222983,1750132238026,-548.04937907,0.00021991,2]
[366222984,1750132238036,-548.04937907,0.00021991,2]
[366222985,1750132238045,-548.04937907,0.00021991,2]
[366222986,1750132238055,-548.04937907,0.00021991,2]
[366222987,1750132238064,-548.04937907,0.00021991,2]
[366222988,1750132238073,-548.04937907,0.00021991,2]
[366222989,1750132238083,-548.04937907,0.00021991,2]
[366222991,1750132238093,-548.04937907,0.00021991,2]
[366222992,1750132238103,-548.04937907,0.00021991,2]
[366222993,1750132238113,-548.04937907,0.00021991,2]
[366222994,1750132238122,-548.04937907,0.00021991,2]
[366222995,1750132238132,-497.58883685,0.00023999,2]
[366222996,1750132238142,-8007.68827324,0.00024,60]
[366223841,1750133002551,1232.88389328,0.0002,2]
[366223842,1750133002575,3767.11610672,0.0002,2]
[366223868,1750133281950,150.0,0.000189,2]
[366223888,1750133432326,-5000.0,0.00020501,2]
[366223889,1750133432336,-1231.79,0.00020708,2]
[366223890,1750133432346,-287.1642,0.00021991,7]
[366223891,1750133432355,-639.7346389,0.00022178,2]
[366223892,1750133432366,-6446.0,0.00022484,5]
[366223893,1750133432375,-845.62440851,0.00022511,2]
[366223894,1750133432385,-160.0,0.00022511,2]
[366223895,1750133432400,-229.94211981,0.00022511,2]
[366223896,1750133432410,-638.62708566,0.0002259,2]
[366223897,1750133432419,-2463.59,0.00022591,2]
[366223898,1750133432430,-168.0,0.00022791,2]
[366223899,1750133432439,-207.4,0.00022915,2]
[366223900,1750133432450,-377.2474343,0.00023068,2]
[366223901,1750133432460,-168.0,0.00023091,2]
[366223902,1750133432469,-168.0,0.00023176,2]
[366223903,1750133432479,-1673.0,0.00023243,2]
[366223905,1750133432488,-168.0,0.00023353,2]
[366223906,1750133432499,-577.638257,0.00023519,3]
[366223908,1750133432508,-250.0,0.00023793,2]
[366223910,1750133432518,-406.0,0.00023832,2]
[366223912,1750133432527,-169.79073392,0.0002389,2]
[366223913,1750133432537,-5000.0,0.0002397,2]
[366223914,1750133432547,-500.0,0.0002397,2]
[366223915,1750133432556,-500.0,0.0002397,2]
[366223916,1750133432566,-500.0,0.0002397,2]
[366223917,1750133432576,-500.0,0.0002397,2]
[366223918,1750133432586,-500.0,0.0002397,2]
[366223919,1750133432596,-642.09313022,0.00023993,2]
[366223920,1750133432606,-642.09313022,0.00023993,2]
[366223921,1750133432616,-642.09313022,0.00023993,2]
[366223922,1750133432626,-642.09313022,0.00023993,2]
[366223923,1750133432636,-642.09313022,0.00023993,2]
[366223924,1750133432646,-642.09313022,0.00023993,2]
[366223925,1750133432656,-642.09313022,0.00023993,2]
[366223926,1750133432667,-642.09313022,0.00023993,2]
[366223927,1750133432676,-642.09313022,0.00023993,2]
[366223928,1750133432687,-642.09313022,0.00023993,2]
[366223929,1750133432697,-642.09313022,0.00023993,2]
[366223930,1750133432707,-209.529,0.00023994,2]
[366223931,1750133432717,-150.0,0.00023994,2]
[366223932,1750133432727,-150.0,0.00023994,2]
[366223933,1750133432737,-216.967,0.00023994,2]
[366223934,1750133432747,-373.19839424,0.00023999,2]
[366223935,1750133432757,-4178.66324561,0.00024,60]
[366223945,1750133438024,-500.0,0.00021122,2]
[366223946,1750133438034,-207.4,0.00022915,2]